bitfinex/quotes_BTCUSD_20240908
["timestamp","ask_amount","ask_price","bid_price","bid_amount"]
[1725757681176,0.000815,54383.0,54382.0,3.34522578]
[1725757681469,0.000815,54383.0,54382.0,3.34522493]
[1725757681690,0.000815,54383.0,54382.0,3.46039516]
[1725757681896,0.000815,54383.0,54382.0,4.02236316]
[1725757682157,0.00081,54386.0,54382.0,4.02236316]
[1725757682158,0.00081,54386.0,54385.0,1.90562352]
[1725757682371,0.00081,54386.0,54385.0,3.13330803]
[1725757682600,0.00081,54386.0,54385.0,3.74359228]
[1725757683031,0.00081,54386.0,54385.0,3.72641155]
[1725757683237,0.00081,54386.0,54385.0,4.1225349]
[1725757683482,0.00081,54403.0,54402.0,1.51848752]
[1725757683691,0.00081,54403.0,54402.0,1.64148752]
[1725757685001,0.00081,54403.0,54402.0,1.69623781]
[1725757685207,0.00081,54403.0,54402.0,1.64148752]
[1725757685414,0.00081,54403.0,54402.0,1.72361296]
[1725757686256,0.00081,54403.0,54402.0,1.71023007]
[1725757686478,0.00081,54403.0,54402.0,1.65548752]
[1725757687562,0.00081,54403.0,54402.0,1.71022657]
[1725757688408,0.00081,54403.0,54402.0,1.71021232]
[1725757688564,0.00081,54403.0,54402.0,1.65548752]
[1725757688765,0.01,54434.0,54405.0,0.01]
[1725757688968,0.183769,54416.0,54407.0,0.183798]
[1725757689194,0.183769,54416.0,54408.0,0.1]
[1725757689395,0.0118104,54415.0,54408.0,0.1]
[1725757690644,0.0118104,54415.0,54408.0,0.10367545]
[1725757690804,0.0118104,54415.0,54408.0,0.00667545]
[1725757691040,0.183766,54417.0,54408.0,0.00367545]
[1725757691467,0.01181507,54416.0,54408.0,0.19147045]
[1725757691627,0.01181507,54416.0,54409.0,0.1]
[1725757691832,0.143,54415.0,54409.0,0.1]
[1725757692034,0.183767,54417.0,54409.0,0.1]
[1725757692236,0.00983493,54414.0,54409.0,0.1]
[1725757692457,0.183767,54417.0,54409.0,0.1]
[1725757692681,0.00982938,54413.0,54409.0,0.1]
[1725757692892,0.183767,54417.0,54409.0,0.1]
[1725757693470,0.367546,54415.0,54409.0,0.1]
[1725757693665,0.367546,54415.0,54408.0,0.002]
[1725757693666,0.08940552,54415.0,54408.0,0.002]
[1725757693876,0.183788,54411.0,54403.0,0.023]
[1725757694085,0.183783,54412.0,54403.0,0.206811]
[1725757694276,0.00985167,54410.0,54409.0,0.006]
[1725757694495,0.00985723,54411.0,54403.0,0.206813]
[1725757694718,0.00985167,54410.0,54403.0,0.206813]
[1725757694931,0.00985167,54410.0,54408.0,0.002]
[1725757695082,0.006,54409.0,54408.0,0.002]
[1725757695282,0.01584612,54409.0,54408.0,0.002]
[1725757695485,0.006,54409.0,54408.0,0.002]
[1725757695663,0.01584612,54409.0,54408.0,0.002]
[1725757695865,0.006,54409.0,54408.0,0.002]
[1725757696066,0.01584612,54409.0,54408.0,0.002]
[1725757696763,0.01584612,54409.0,54404.0,0.1]
[1725757697092,0.367559,54413.0,54404.0,0.1]
[1725757697329,0.183789,54411.0,54404.0,0.1]
[1725757697495,0.00820196,54410.0,54403.0,0.123]
[1725757697694,0.183787,54411.0,54408.0,0.008]
[1725757697919,0.00820196,54410.0,54403.0,0.4943007]
[1725757698121,0.02203955,54414.0,54403.0,0.1266757]
[1725757698326,0.000815,54409.0,54404.0,0.186808]
[1725757698547,0.000815,54409.0,54405.0,0.1]
[1725757699034,0.000815,54409.0,54407.0,0.08940552]
[1725757699373,0.000815,54409.0,54407.0,0.18940552]
[1725757699580,0.000815,54409.0,54407.0,0.1]
[1725757699940,0.000815,54409.0,54408.0,0.006]
[1725757700188,0.000815,54409.0,54407.0,0.1]
[1725757700436,0.000815,54409.0,54408.0,1.97035028]
[1725757700667,0.000815,54409.0,54408.0,2.45877129]
[1725757700879,0.000815,54409.0,54408.0,2.2225362]
[1725757701117,0.000815,54409.0,54408.0,2.2385362]
[1725757701379,0.000815,54409.0,54408.0,2.68455655]
[1725757701602,0.000815,54409.0,54408.0,2.68771413]
[1725757701818,0.000815,54409.0,54408.0,2.70171413]
[1725757702900,0.000815,54409.0,54408.0,2.68771328]
[1725757703322,0.000815,54409.0,54408.0,2.70171328]
[1725757703535,0.000815,54409.0,54408.0,2.68771328]
[1725757703963,0.000815,54409.0,54408.0,2.70171328]
[1725757704198,0.000815,54409.0,54408.0,2.8551471]
[1725757704648,0.000815,54409.0,54408.0,2.8691471]
[1725757704864,0.000815,54409.0,54408.0,2.8551471]
[1725757705358,0.000815,54409.0,54408.0,2.14331275]
[1725757705561,0.000815,54409.0,54408.0,2.30874657]
[1725757706025,0.000815,54409.0,54408.0,2.67174657]
[1725757706253,0.000815,54409.0,54408.0,2.78234079]
[1725757706488,0.000815,54409.0,54408.0,2.64874657]
[1725757706706,0.000815,54409.0,54408.0,2.59410882]
[1725757706914,0.000815,54409.0,54408.0,2.60810882]
[1725757707141,0.000815,54409.0,54408.0,1.606889]
[1725757707559,0.000815,54409.0,54408.0,1.988482]
[1725757707770,0.000815,54409.0,54408.0,1.974482]
[1725757707982,0.000815,54409.0,54408.0,1.606889]
[1725757708197,0.000815,54409.0,54408.0,1.988482]
[1725757708425,0.000815,54409.0,54408.0,0.977]
[1725757708647,0.000815,54409.0,54408.0,0.614]
[1725757709317,0.000815,54409.0,54408.0,0.014]
[1725757709548,0.000815,54409.0,54400.0,0.363]
[1725757709549,0.183804,54406.0,54400.0,0.363]
[1725757709749,0.183801,54407.0,54400.0,0.363]
[1725757710181,0.183801,54407.0,54400.0,0.546823]
[1725757710406,0.368401,54409.0,54400.0,0.546823]
[1725757710617,0.552194,54409.0,54408.0,0.004628]
[1725757711040,0.552194,54409.0,54408.0,0.001628]
[1725757711250,0.000815,54409.0,54408.0,0.001628]
[1725757711949,0.000815,54409.0,54408.0,0.261024]
[1725757712171,0.000815,54409.0,54408.0,0.361024]
[1725757712375,0.000815,54409.0,54408.0,0.177228]
[1725757713056,0.000815,54409.0,54408.0,0.364024]
[1725757713277,0.000815,54409.0,54408.0,0.177228]
[1725757713492,0.000815,54409.0,54408.0,0.077228]
[1725757713708,0.000815,54409.0,54408.0,0.188228]
[1725757713926,0.000815,54409.0,54408.0,0.372024]
[1725757714140,0.000815,54409.0,54408.0,0.177228]
[1725757714368,0.000815,54409.0,54408.0,0.37569945]
[1725757714570,0.000815,54409.0,54408.0,0.36469945]
[1725757714997,0.000815,54409.0,54408.0,0.37569945]
[1725757715338,0.000815,54409.0,54408.0,0.372024]
[1725757716207,0.000815,54409.0,54408.0,0.361024]
[1725757716627,0.000815,54409.0,54408.0,0.372024]
[1725757716838,0.000815,54409.0,54408.0,0.361024]
[1725757717432,0.000815,54409.0,54408.0,0.372024]
[1725757717742,0.000815,54409.0,54408.0,0.383024]
[1725757717954,0.000815,54409.0,54408.0,0.361024]
[1725757718420,0.000815,54409.0,54408.0,0.101628]
[1725757719455,0.000815,54409.0,54408.0,0.115628]
[1725757719827,0.000815,54409.0,54408.0,0.101628]
[1725757720056,0.000815,54409.0,54408.0,0.114628]
[1725757720275,0.000815,54409.0,54408.0,0.101628]
[1725757720720,0.000815,54409.0,54408.0,0.115628]
[1725757721375,0.000815,54409.0,54408.0,0.028628]
[1725757722468,0.000815,54409.0,54408.0,0.001628]
[1725757722687,0.000815,54409.0,54408.0,0.328624]
[1725757722922,0.000815,54409.0,54408.0,0.442624]
[1725757723140,0.000815,54409.0,54408.0,0.428624]
[1725757723583,0.000815,54409.0,54408.0,0.258828]
[1725757723789,0.000815,54409.0,54408.0,0.180828]
[1725757724004,0.000815,54409.0,54408.0,0.194828]
[1725757724205,0.000815,54409.0,54408.0,0.180828]
[1725757724426,0.000815,54409.0,54408.0,0.364624]
[1725757725291,0.000815,54409.0,54408.0,0.732217]
[1725757725514,0.000815,54409.0,54408.0,1.18681]
[1725757725721,0.000815,54409.0,54408.0,1.20081]
[1725757725929,0.000815,54409.0,54408.0,1.18681]
[1725757726140,0.000815,54409.0,54408.0,1.20081]
[1725757726352,0.000815,54409.0,54408.0,1.25554989]
[1725757726564,0.000815,54409.0,54408.0,1.24154989]
[1725757726744,0.000815,54409.0,54408.0,1.25554989]
[1725757726984,0.000815,54409.0,54408.0,1.70224421]
[1725757727195,0.000815,54409.0,54408.0,1.60914289]
[1725757727409,0.000815,54409.0,54408.0,1.633185]
[1725757727624,0.000815,54409.0,54408.0,1.66051283]
[1725757728375,0.000815,54409.0,54408.0,1.578403]
[1725757728577,0.000815,54409.0,54408.0,1.564403]
[1725757728798,0.000815,54409.0,54408.0,1.578403]
[1725757729208,0.000815,54409.0,54408.0,1.6780407]
[1725757729412,0.000815,54409.0,54408.0,1.6800407]
[1725757729681,0.000815,54409.0,54408.0,1.77352048]
[1725757730094,0.000815,54409.0,54408.0,1.78752048]
[1725757730428,0.000815,54409.0,54408.0,1.77552048]
[1725757731241,0.000815,54409.0,54408.0,1.6660407]
[1725757731611,0.000814,54414.0,54408.0,1.6660407]
[1725757731612,0.183736,54426.0,54419.0,0.183758]
[1725757731891,0.183736,54426.0,54420.0,0.1]
[1725757733583,0.183736,54426.0,54420.0,0.105]
[1725757733792,0.183739,54425.0,54420.0,0.105]
[1725757734007,0.183739,54425.0,54420.0,0.005]
[1725757734658,0.183731,54428.0,54422.0,0.064]
[1725757734866,0.000815,54426.0,54422.0,0.247748]
[1725757735282,0.000815,54426.0,54423.0,0.183745]
[1725757735695,0.000815,54426.0,54424.0,0.183741]
[1725757737000,0.000815,54426.0,54425.0,0.262939]
[1725757737280,0.000815,54426.0,54425.0,0.362939]
[1725757738974,0.000815,54426.0,54425.0,0.730417]
[1725757739406,0.000815,54426.0,54425.0,0.743417]
[1725757740247,0.000815,54426.0,54425.0,0.730417]
[1725757740468,0.000815,54426.0,54425.0,0.362939]
[1725757741102,0.000815,54426.0,54425.0,0.730417]
[1725757741971,0.000815,54426.0,54425.0,0.362939]
[1725757742182,0.000815,54426.0,54425.0,0.730417]
[1725757742688,0.000815,54426.0,54425.0,0.362939]
[1725757742886,0.000815,54426.0,54425.0,0.1922]
[1725757743106,0.000815,54426.0,54425.0,0.97375082]
[1725757743307,0.000815,54426.0,54425.0,1.35122882]
[1725757743737,0.000815,54426.0,54425.0,1.36422882]
[1725757745083,0.000815,54426.0,54425.0,1.196795]
[1725757745323,0.000815,54426.0,54425.0,0.375939]
[1725757745563,0.000815,54426.0,54425.0,0.296739]
[1725757745800,0.18455,54426.0,54425.0,0.113]
[1725757746025,0.18455,54426.0,54425.0,0.013]
[1725757746212,0.552021,54426.0,54425.0,0.113]
[1725757746471,0.919492,54426.0,54425.0,0.113]
[1725757746689,1.286148,54426.0,54425.0,0.013]
[1725757747191,1.30766048,54426.0,54425.0,0.013]
[1725757747429,1.67513148,54426.0,54425.0,0.013]
[1725757747925,2.05460248,54426.0,54425.0,0.013]
[1725757748396,1.68713148,54426.0,54425.0,0.013]
[1725757748628,1.68713148,54426.0,54408.0,0.001628]
[1725757748629,0.551379,54409.0,54408.0,0.001628]
[1725757749581,0.918965,54409.0,54408.0,0.001628]
[1725757750410,1.286551,54409.0,54408.0,0.001628]
[1725757750414,1.286551,54409.0,54408.0,0.003628]
[1725757752069,1.31535721,54409.0,54408.0,0.001628]
[1725757752327,1.31535721,54409.0,54408.0,0.003628]
[1725757752828,1.31535721,54409.0,54408.0,0.001628]
[1725757753532,1.31535721,54409.0,54408.0,0.002628]
[1725757753533,1.31835721,54409.0,54408.0,0.002628]
[1725757753763,1.31835721,54409.0,54408.0,0.001628]
[1725757753990,1.31535721,54409.0,54408.0,0.001628]
[1725757755675,0.03180621,54409.0,54408.0,0.145628]
[1725757755916,0.03180621,54409.0,54408.0,0.268628]
[1725757755917,0.003,54409.0,54408.0,0.268628]
[1725757756155,0.16743382,54434.0,54410.0,0.0801]
[1725757756156,0.183757,54420.0,54410.0,0.0801]
[1725757756401,0.18377,54416.0,54410.0,0.0801]
[1725757756619,0.16743382,54430.0,54410.0,0.0801]
[1725757756620,0.367522,54419.0,54410.0,0.0771]
[1725757756829,0.183767,54417.0,54410.0,0.0771]
[1725757757063,0.183769,54416.0,54410.0,0.0771]
[1725757758246,0.367522,54419.0,54410.0,0.0771]
[1725757758247,0.183764,54418.0,54410.0,0.0771]
[1725757758904,0.183764,54418.0,54411.0,0.183785]
[1725757759140,0.183764,54418.0,54412.0,0.1]
[1725757760793,0.183764,54418.0,54412.0,0.104]
[1725757761018,0.183764,54418.0,54412.0,0.1]
[1725757761261,0.183764,54418.0,54412.0,0.11]
[1725757761515,0.02144187,54426.0,54414.0,0.5]
[1725757761762,0.000815,54427.0,54414.0,0.5]
[1725757761763,0.000815,54427.0,54423.0,0.0782]
[1725757762011,0.000815,54427.0,54426.0,0.629406]
[1725757763706,0.000815,54427.0,54426.0,0.643406]
[1725757764189,0.000815,54427.0,54426.0,0.0782]
[1725757764393,0.000815,54427.0,54426.0,0.261935]
[1725757764597,0.000815,54427.0,54426.0,0.275935]
[1725757765881,0.000815,54427.0,54426.0,0.261935]
[1725757766100,0.000815,54427.0,54426.0,0.275935]
[1725757766930,0.000815,54427.0,54426.0,0.261935]
[1725757767335,0.000815,54427.0,54426.0,0.274935]
[1725757767536,0.000815,54427.0,54426.0,0.374935]
[1725757767744,0.000815,54427.0,54426.0,0.361935]
[1725757768946,0.000815,54427.0,54426.0,0.375935]
[1725757769312,0.000815,54427.0,54426.0,0.361935]
[1725757769759,0.000815,54427.0,54426.0,0.375935]
[1725757769958,0.000815,54427.0,54426.0,0.361935]
[1725757770253,0.000815,54427.0,54426.0,0.1922]
[1725757770434,0.000815,54427.0,54426.0,0.1152]
[1725757770648,0.000815,54427.0,54426.0,0.384935]
[1725757770854,0.000815,54427.0,54426.0,0.398935]
[1725757771274,0.000815,54427.0,54426.0,0.2152]
[1725757771720,0.184547,54427.0,54426.0,0.1922]
[1725757771949,0.184547,54427.0,54426.0,0.0922]
[1725757772156,0.184547,54427.0,54426.0,0.1922]
[1725757772386,0.184547,54427.0,54426.0,0.1782]
[1725757772598,0.184547,54427.0,54426.0,0.1922]
[1725757772824,0.552011,54427.0,54426.0,0.1]
[1725757773269,0.552011,54427.0,54426.0,0.014]
[1725757773530,0.183738,54426.0,54422.0,0.0782]
[1725757773930,0.183742,54425.0,54422.0,0.0782]
[1725757774144,0.183745,54423.0,54422.0,0.0782]
[1725757774580,0.551236,54423.0,54422.0,0.0782]
[1725757775841,0.551266,54420.0,54419.0,0.1]
[1725757776055,0.183759,54419.0,54418.0,0.0782]
[1725757777100,0.551277,54419.0,54418.0,0.0782]
[1725757777965,0.183759,54419.0,54418.0,0.0782]
[1725757778429,0.183755,54420.0,54419.0,0.0609]
[1725757778645,0.183755,54420.0,54419.0,0.1609]
[1725757779474,0.551266,54420.0,54419.0,0.1609]
[1725757779885,0.551266,54420.0,54419.0,0.1659]
[1725757780633,0.183755,54420.0,54419.0,0.1659]
[1725757781066,0.367499,54422.0,54419.0,0.2414]
[1725757781280,0.367478,54425.0,54420.0,0.0755]
[1725757781485,0.367478,54425.0,54420.0,0.1755]
[1725757781686,0.183752,54421.0,54420.0,0.0755]
[1725757781883,0.367488,54424.0,54420.0,0.0755]
[1725757782111,0.367478,54425.0,54420.0,0.0755]
[1725757782112,0.183749,54422.0,54420.0,0.0755]
[1725757782308,0.183752,54421.0,54420.0,0.0755]
[1725757782608,0.551257,54421.0,54420.0,0.0755]
[1725757783060,0.551257,54421.0,54420.0,0.0845]
[1725757783310,0.551257,54421.0,54420.0,0.0755]
[1725757783645,0.551257,54421.0,54420.0,0.0865]
[1725757783849,0.551257,54421.0,54420.0,0.0755]
[1725757785316,0.551257,54421.0,54420.0,0.0835]
[1725757786519,0.918762,54421.0,54420.0,0.0835]
[1725757787077,0.551257,54421.0,54420.0,0.0755]
[1725757787511,0.183752,54421.0,54420.0,0.0755]
[1725757787745,0.368286,54427.0,54421.0,0.1405]
[1725757787957,0.183743,54424.0,54422.0,0.1]
[1725757788185,0.368286,54427.0,54422.0,0.0994]
[1725757788655,0.183745,54423.0,54422.0,0.0994]
[1725757788659,0.918727,54423.0,54422.0,0.0994]
[1725757788865,0.918727,54423.0,54422.0,0.099]
[1725757789084,0.551257,54421.0,54420.0,0.009]
[1725757789296,0.183759,54419.0,54418.0,0.1405]
[1725757789728,0.183759,54419.0,54418.0,0.1402]
[1725757789968,0.918795,54419.0,54418.0,0.0755]
[1725757790190,0.367537,54417.0,54413.0,0.0755]
[1725757790425,0.367537,54417.0,54410.0,0.00163]
[1725757790426,0.183786,54411.0,54410.0,0.00163]
[1725757790654,0.91893,54411.0,54410.0,0.00153]
[1725757792608,0.91893,54411.0,54410.0,0.00753]
[1725757795720,0.16743382,54416.0,54410.0,0.00753]
[1725757795721,0.183784,54412.0,54411.0,0.0755]
[1725757796174,0.183784,54412.0,54411.0,0.1755]
[1725757798145,0.16743382,54428.0,54413.0,0.0755]
[1725757798385,0.183772,54416.0,54413.0,0.1755]
[1725757798908,0.367529,54418.0,54413.0,0.1755]
[1725757799123,0.183776,54414.0,54413.0,0.1755]
[1725757799342,0.168466,54414.0,54413.0,0.1755]
[1725757799558,0.168466,54414.0,54413.0,0.1835]
[1725757799998,0.168466,54414.0,54413.0,0.1755]
[1725757800904,0.183774,54415.0,54413.0,0.1755]
[1725757801114,0.183774,54415.0,54413.0,0.1]
[1725757801330,0.183774,54415.0,54414.0,0.1415]
[1725757801564,0.183774,54415.0,54414.0,0.2415]
[1725757802412,0.183767,54417.0,54414.0,0.2415]
[1725757802623,0.183769,54416.0,54415.0,0.1]
[1725757805433,0.183769,54416.0,54415.0,0.112]
[1725757805637,0.000815,54417.0,54416.0,0.1415]
[1725757806037,0.000815,54417.0,54416.0,0.2415]
[1725757806244,0.000815,54417.0,54416.0,0.425269]
[1725757806660,0.000815,54417.0,54416.0,0.792807]
[1725757807087,0.000815,54417.0,54416.0,0.804807]
[1725757807297,0.000815,54417.0,54416.0,0.2535]
[1725757807502,0.000815,54417.0,54416.0,0.437269]
[1725757808393,0.000815,54417.0,54416.0,0.2415]
[1725757808609,0.000815,54417.0,54416.0,1.160345]
[1725757808823,0.000815,54417.0,54416.0,0.806807]
[1725757810006,0.000815,54417.0,54416.0,0.439269]
[1725757810242,0.000815,54417.0,54416.0,0.792807]
[1725757810511,0.000815,54417.0,54416.0,0.806807]
[1725757810979,0.000815,54417.0,54416.0,0.439269]
[1725757811214,0.000815,54417.0,54416.0,0.806807]
[1725757811938,0.000815,54417.0,54416.0,0.792807]
[1725757812185,0.000815,54417.0,54416.0,0.806807]
[1725757812681,0.000815,54417.0,54416.0,0.80670607]
[1725757813404,0.000815,54417.0,54416.0,0.43916807]
[1725757813903,0.183753,54421.0,54417.0,0.183765]
[1725757814139,0.183753,54421.0,54417.0,0.283765]
[1725757815035,0.183749,54422.0,54417.0,0.283765]
[1725757815474,0.367488,54424.0,54418.0,0.18376]
[1725757815906,0.183752,54421.0,54419.0,0.1]
[1725757816124,0.183752,54421.0,54417.0,0.296764]
[1725757816544,0.183752,54421.0,54417.0,0.283764]
[1725757816761,0.18375,54422.0,54417.0,0.283765]
[1725757817229,0.18375,54422.0,54417.0,0.295765]
[1725757817421,0.18375,54422.0,54418.0,0.183762]
[1725757817643,0.18375,54422.0,54419.0,0.1]
[1725757818108,0.000815,54421.0,54420.0,0.1428]
[1725757818335,0.000815,54421.0,54420.0,0.2428]
[1725757819257,0.000815,54421.0,54420.0,0.794066]
[1725757819491,0.000815,54421.0,54420.0,0.439555]
[1725757822329,0.000815,54421.0,54420.0,0.426555]
[1725757822548,0.000815,54421.0,54420.0,0.440555]
[1725757824376,0.000815,54421.0,54420.0,0.808066]
[1725757824605,0.000815,54421.0,54420.0,0.440555]
[1725757825771,0.000815,54421.0,54420.0,0.808066]
[1725757826192,0.000815,54421.0,54420.0,0.440555]
[1725757826412,0.000815,54421.0,54420.0,0.808066]
[1725757830395,0.000815,54421.0,54420.0,1.175577]
[1725757830620,0.000815,54421.0,54420.0,2.733088]
[1725757831096,0.000815,54421.0,54420.0,2.78786624]
[1725757831982,0.000815,54421.0,54420.0,2.78986624]
[1725757832201,0.000815,54421.0,54420.0,2.733088]
[1725757836896,0.000815,54421.0,54420.0,2.719088]
[1725757837116,0.000815,54421.0,54420.0,2.733088]
[1725757840490,0.000815,54421.0,54420.0,2.78782329]
[1725757840710,0.000815,54421.0,54420.0,2.42031229]
[1725757840918,0.000815,54421.0,54420.0,2.365577]
[1725757841401,0.000815,54421.0,54420.0,2.42031229]
[1725757842258,0.000815,54421.0,54420.0,2.365577]
[1725757842474,0.000815,54421.0,54420.0,2.42031229]
[1725757843447,0.000815,54421.0,54420.0,1.93435016]
[1725757843646,0.000815,54421.0,54420.0,1.889577]
[1725757844414,0.000815,54421.0,54420.0,1.891207]
[1725757845583,0.000815,54421.0,54420.0,1.513696]
[1725757845802,0.000815,54421.0,54420.0,1.523696]
[1725757846914,0.000815,54421.0,54420.0,1.891207]
[1725757848180,0.184548,54427.0,54422.0,0.183746]
[1725757848181,0.183734,54427.0,54422.0,0.183746]
[1725757848401,0.0185951,54426.0,54423.0,0.1]
[1725757848884,0.0185951,54426.0,54423.0,0.283745]
[1725757850010,0.0185951,54426.0,54423.0,0.297745]
[1725757850449,0.183734,54427.0,54423.0,0.297745]
[1725757850658,0.183734,54427.0,54423.0,0.283745]
[1725757851065,0.183734,54427.0,54423.0,0.296745]
[1725757852332,0.183734,54427.0,54423.0,0.113]
[1725757852537,0.183734,54427.0,54423.0,0.1]
[1725757852765,0.183734,54427.0,54423.0,0.114]
[1725757853217,0.183734,54427.0,54423.0,0.1]
[1725757853419,0.183734,54427.0,54423.0,0.112]
[1725757854583,0.183736,54426.0,54423.0,0.112]
[1725757854785,0.01858972,54425.0,54423.0,0.112]
[1725757855729,0.01858972,54425.0,54423.0,0.1]
[1725757856147,0.01858972,54425.0,54423.0,0.114]
[1725757860818,0.183736,54426.0,54423.0,0.114]
[1725757861329,0.367461,54428.0,54424.0,0.0804]
[1725757861656,0.01860459,54427.0,54424.0,0.0804]
[1725757862382,0.183742,54424.0,54423.0,0.113]
[1725757862602,0.551257,54421.0,54420.0,0.00163]
[1725757862817,0.55579684,54421.0,54420.0,0.00163]
[1725757863278,0.18829184,54421.0,54420.0,0.00163]
[1725757864411,0.56983798,54421.0,54420.0,0.00163]
[1725757865339,0.56983798,54421.0,54420.0,0.01263]
[1725757865771,0.93734298,54421.0,54420.0,0.01263]
[1725757865992,0.93734298,54421.0,54420.0,0.00163]
[1725757866422,0.93734298,54421.0,54420.0,0.00963]
[1725757866631,0.93734298,54421.0,54420.0,0.00163]
[1725757867058,0.93734298,54421.0,54420.0,0.00963]
[1725757867918,0.56983798,54421.0,54420.0,0.15353]
[1725757868146,0.56983798,54421.0,54420.0,0.25353]
[1725757868353,0.20233298,54421.0,54420.0,0.25353]
[1725757869221,0.01858098,54421.0,54420.0,0.25353]
[1725757869442,0.01858098,54421.0,54420.0,0.91710415]
[1725757869655,0.19781485,54427.0,54423.0,0.1439]
[1725757870087,0.01851104,54426.0,54424.0,0.1]
[1725757870577,0.19781485,54427.0,54424.0,0.1]
[1725757870800,0.01851643,54426.0,54424.0,0.1]
[1725757871265,0.01851643,54426.0,54424.0,0.283741]
[1725757872893,0.01851643,54426.0,54424.0,0.285741]
[1725757873777,0.01851643,54426.0,54424.0,0.102]
[1725757874002,0.01851643,54426.0,54424.0,0.1]
[1725757874235,0.01851643,54426.0,54424.0,0.28374]
[1725757875153,0.01851643,54426.0,54425.0,0.183739]
[1725757875407,0.01851643,54426.0,54425.0,0.422439]
[1725757876050,0.01851643,54426.0,54425.0,0.789917]
[1725757876495,0.01851643,54426.0,54425.0,1.524873]
[1725757876743,0.01408185,54427.0,54426.0,0.551206]
[1725757876969,0.01408185,54427.0,54426.0,0.90221415]
[1725757877186,0.01408185,54427.0,54426.0,1.26968515]
[1725757879987,0.01408185,54427.0,54426.0,1.28368515]
[1725757887213,0.01408185,54427.0,54426.0,2.26270668]
[1725757887439,0.01408185,54427.0,54426.0,2.28809432]
[1725757887671,0.01408185,54427.0,54426.0,2.061848]
[1725757887903,0.01408185,54427.0,54426.0,1.7765009]
[1725757888635,0.01408185,54427.0,54426.0,1.694377]
[1725757889073,0.01408185,54427.0,54426.0,2.061848]
[1725757889290,0.01408185,54427.0,54426.0,1.680377]
[1725757889518,0.01408185,54427.0,54426.0,1.694377]
[1725757889949,0.01408185,54427.0,54426.0,1.680377]
[1725757890165,0.01408185,54427.0,54426.0,1.694377]
[1725757890609,0.01408185,54427.0,54426.0,1.74911646]
[1725757891573,0.01408185,54427.0,54426.0,2.22511646]
[1725757891812,0.01408185,54427.0,54426.0,2.170377]
[1725757892518,0.01408185,54427.0,54426.0,2.156377]
[1725757893163,0.01408185,54427.0,54426.0,2.170377]
[1725757893389,0.01408185,54427.0,54426.0,2.156377]
[1725757893615,0.01408185,54427.0,54426.0,2.170377]
[1725757894310,0.01408185,54427.0,54426.0,2.31441148]
[1725757894829,0.01408185,54427.0,54426.0,2.31440806]
[1725757900941,0.01408185,54427.0,54426.0,1.802906]
[1725757901236,0.01408185,54427.0,54426.0,2.170377]
[1725757902399,0.01408185,54427.0,54426.0,2.156377]
[1725757902625,0.01408185,54427.0,54426.0,1.802906]
[1725757902842,0.01408185,54427.0,54426.0,2.170377]
[1725757903298,0.01408185,54427.0,54426.0,1.802906]
[1725757903521,0.01408185,54427.0,54426.0,1.788906]
[1725757903780,0.01408185,54427.0,54426.0,1.802906]
[1725757904248,0.01408185,54427.0,54426.0,1.788906]
[1725757905608,0.01408185,54427.0,54426.0,1.802906]
[1725757905840,0.01408185,54427.0,54426.0,1.788906]
[1725757906063,0.01408185,54427.0,54426.0,1.804536]
[1725757908586,0.01408185,54427.0,54426.0,1.437065]
[1725757908853,0.01408185,54427.0,54426.0,1.804536]
[1725757909078,0.01408185,54427.0,54426.0,2.172007]
[1725757909556,0.01408185,54427.0,54426.0,2.26131515]
[1725757912366,0.01408185,54427.0,54426.0,2.24731515]
[1725757912574,0.01408185,54427.0,54426.0,2.26131515]
[1725757913013,0.01408185,54427.0,54426.0,1.89384415]
[1725757913224,0.01408185,54427.0,54426.0,1.90784415]
[1725757914326,0.01408185,54427.0,54426.0,1.96255675]
[1725757915479,0.01408185,54427.0,54426.0,1.90784415]
[1725757916141,0.01408185,54427.0,54426.0,1.99000082]
[1725757916359,0.01408185,54427.0,54426.0,1.90784415]
[1725757917509,0.01408185,54427.0,54426.0,2.01726935]
[1725757918856,0.01408185,54427.0,54426.0,1.98941228]
[1725757919344,0.01408185,54427.0,54426.0,2.00341228]
[1725757919570,0.01408185,54427.0,54426.0,1.98941228]
[1725757920233,0.01408185,54427.0,54426.0,2.00341228]
[1725757920694,0.01408185,54427.0,54426.0,1.98941228]
[1725757920899,0.01408185,54427.0,54426.0,2.00341228]
[1725757922414,0.01408185,54427.0,54426.0,1.89384415]
[1725757926228,0.183699,54437.0,54431.0,0.367433]
[1725757926438,0.183699,54437.0,54433.0,0.18371]
[1725757926667,0.183699,54437.0,54434.0,0.0612]
[1725757926910,0.183694,54439.0,54434.0,0.344908]
[1725757927133,0.183695,54438.0,54435.0,0.1]
[1725757929429,0.00492367,54437.0,54435.0,0.109]
[1725757930719,0.00492367,54437.0,54435.0,0.1]
[1725757932032,0.00492367,54437.0,54435.0,0.111]
[1725757932262,0.18862267,54437.0,54435.0,0.111]
[1725757934287,0.367383,54439.0,54435.0,0.111]
[1725757934511,0.00493177,54436.0,54435.0,0.111]
[1725757934722,0.183697,54438.0,54435.0,0.111]
[1725757935161,0.367383,54439.0,54435.0,0.111]
[1725757935162,0.18780775,54437.0,54435.0,0.111]
[1725757935376,0.18780775,54437.0,54435.0,0.1]
[1725757935598,0.18780775,54437.0,54435.0,0.112]
[1725757935854,0.18780775,54437.0,54435.0,0.1]
[1725757936339,0.18780775,54437.0,54435.0,0.109]
[1725757936570,0.18780775,54437.0,54435.0,0.1]
[1725757937038,0.18780775,54437.0,54435.0,0.111]
[1725757939768,0.18780775,54437.0,54435.0,0.1]
[1725757939980,0.18780775,54437.0,54435.0,0.112]